[Event "Nordic Chess-ch 2019"]
[Site "Sarpsborg"]
[Date "2019.06.24"]
[Round "5.25"]
[White "Kreken, Eivind Grunt"]
[Black "Skaar, Ben Samuel Groth"]
[Result "1-0"]
[ECO "D51"]
[WhiteElo "1784"]
[BlackElo "1362"]
[Annotator "NA"]
[PlyCount "37"]
[EventDate "2019.06.21"]
[EventType "swiss"]
[EventCountry "NOR"]
[SourceTitle "playchess.com"]
[Source "ChessBase"]
[SourceQuality "1"]
[TimeControl "40/5400+30:1800+30"]

1. d4 {[%emt 0:00:00]} d5 {[%emt 0:00:00]} 2. c4 {[%emt 0:00:00]} e6 {[%emt 0:00:00]} 3. Nc3 {[%emt 0:00:00]} Nf6 {[%emt 0:00:00]} 4. cxd5 {[%emt 0:00:05]} exd5 {[%emt 0:00:00]} 5. Bg5 {[%emt 0:00:05]} Nbd7 {[%emt 0:00:36]} 6. e3 {[%emt 0:00:16]} c6 {[%emt 0:00:14]} 7. Bd3 {[%emt 0:00:08]} Bb4 {[%emt 0:00:25]} 8. Qc2 {[%emt 0:00:57]} O-O {[%emt 0:01:26]} 9. Bxh7+ {[%emt 0:00:45]} Kh8 {[%emt 0:00:53]} 10. Bd3 {[%emt 0:06:28]} Qc7 {[%emt 0:02:47]} 11. Nf3 {[%emt 0:02:20]} b6 {[%emt 0:11:52]} 12. O-O {[%emt 0:04:22]} Bb7 {[%emt 0:04:24]} 13. e4 {[%emt 0:04:33]} Bxc3 {[%emt 0:03:35]} 14. bxc3 {[%emt 0:00:12]} dxe4 {[%emt 0:00:08]} 15. Bxe4 {[%emt 0:00:18]} Nxe4 {[%emt 0:00:12]} 16. Qxe4 {[%emt 0:00:12]} c5 {[%emt 0:00:35]} 17. Qh4+ {[%emt 0:00:34]} Kg8 {[%emt 0:00:07]} 18. Be7 {[%emt 0:01:16]} Rfe8 {[%emt 0:00:57]} 19. Ng5 {[%emt 0:00:25]} 1-0

[Event "Nordic Chess-ch 2019"]
[Site "Sarpsborg"]
[Date "2019.06.24"]
[Round "5.26"]
[White "Kro, Andreas Fuskeland"]
[Black "Neretljak, Nedzad"]
[Result "0-1"]
[ECO "D80"]
[WhiteElo "1565"]
[BlackElo "2114"]
[Annotator "NA"]
[PlyCount "88"]
[EventDate "2019.06.21"]
[EventType "swiss"]
[EventCountry "NOR"]
[SourceTitle "playchess.com"]
[Source "ChessBase"]
[SourceQuality "1"]
[TimeControl "40/5400+30:1800+30"]

1. d4 {[%emt 0:00:00]} Nf6 {[%emt 0:00:00]} 2. c4 {[%emt 0:00:00]} g6 {[%emt 0:00:00]} 3. Nc3 {[%emt 0:00:00]} d5 {[%emt 0:00:14]} 4. Bg5 {[%emt 0:00:52]} Ne4 {[%emt 0:01:13]} 5. Bh4 {[%emt 0:00:48]} Nxc3 {[%emt 0:00:38]} 6. bxc3 {[%emt 0:00:05]} dxc4 {[%emt 0:01:38]} 7. Qa4+ {[%emt 0:02:37]} Nd7 {[%emt 0:03:17]} 8. e3 {[%emt 0:03:56]} Bg7 {[%emt 0:03:34]} 9. Bxc4 {[%emt 0:08:23]} O-O {[%emt 0:01:09]} 10. Qc2 {[%emt 0:00:18]} c5 {[%emt 0:00:56]} 11. Nf3 {[%emt 0:03:26]} Nb6 {[%emt 0:00:47]} 12. Be2 {[%emt 0:01:49]} cxd4 {[%emt 0:00:28]} 13. cxd4 {[%emt 0:01:22]} Bf5 {[%emt 0:00:25]} 14. Qc5 {[%emt 0:08:45]} Nd5 {[%emt 0:08:18]} 15. Bc4 {[%emt 0:04:33]} Nf6 {[%emt 0:00:24]} 16. Ne5 {[%emt 0:03:42]} Rc8 {[%emt 0:01:30]} 17. Qxa7 {[%emt 0:08:38]} Rxc4 {[%emt 0:00:44]} 18. Nxc4 {[%emt 0:01:35]} Qd5 {[%emt 0:06:29]} 19. Nd2 {[%emt 0:10:30]} Qxg2 {[%emt 0:00:11]} 20. Rf1 {[%emt 0:05:23]} Bd3 {[%emt 0:00:07]} 21. Bg3 {[%emt 0:00:46]} Ba6 {[%emt 0:02:11]} 22. O-O-O {[%emt 0:06:33]} Qc6+ {[%emt 0:01:08]} 23. Qc5 {[%emt 0:01:45]} Qe6 {[%emt 0:01:32]} 24. Kb2 {[%emt 0:01:37]} Rc8 {[%emt 0:02:49]} 25. Qe5 {[%emt 0:03:41]} Qb6+ {[%emt 0:01:09]} 26. Nb3 {[%emt 0:00:25]} Bxf1 {[%emt 0:00:49]} 27. Rxf1 {[%emt 0:00:32]} Qa6 {[%emt 0:00:15]} 28. Rc1 {[%emt 0:02:05]} Ra8 {[%emt 0:00:45]} 29. a4 {[%emt 0:00:55]} Qe2+ {[%emt 0:07:07]} 30. Rc2 {[%emt 0:01:47]} Qf3 {[%emt 0:01:24]} 31. Qxe7 {[%emt 0:01:29]} Re8 {[%emt 0:00:32]} 32. Qc7 {[%emt 0:03:50]} h5 {[%emt 0:01:43]} 33. Qf4 {[%emt 0:01:49]} Qg2 {[%emt 0:04:59]} 34. f3 {[%emt 0:04:48]} Qg1 {[%emt 0:01:08]} 35. e4 {[%emt 0:01:48]} Rd8 {[%emt 0:01:37]} 36. Rc7 {[%emt 0:02:10]} Rxd4 {[%emt 0:01:02]} 37. Nxd4 {[%emt 0:00:46]} Qxd4+ {[%emt 0:00:07]} 38. Kc1 {[%emt 0:01:29]} Kh7 {[%emt 0:01:58]} 39. Qe5 {[%emt 0:01:38]} Qe3+ {[%emt 0:02:28]} 40. Kb1 {[%emt 0:01:13]} Qxf3 {[%emt 0:02:29]} 41. Rxb7 {[%emt 0:32:04]} Nxe4 {[%emt 0:31:21]} 42. Qc7 {[%emt 0:00:00]} Qd1+ {[%emt 0:00:00]} 43. Ka2 {[%emt 0:00:00]} Qxa4+ {[%emt 0:00:00]} 44. Kb1 {[%emt 0:00:00]} Nc3+ {[%emt 0:00:00]} 0-1

[Event "Nordic Chess-ch 2019"]
[Site "Sarpsborg"]
[Date "2019.06.24"]
[Round "5.27"]
[White "Nizar, Siako"]
[Black "Hamre, Kenneth"]
[Result "0-1"]
[ECO "A34"]
[WhiteElo "1209"]
[BlackElo "2033"]
[Annotator "NA"]
[PlyCount "77"]
[EventDate "2019.06.21"]
[EventType "swiss"]
[EventCountry "NOR"]
[SourceTitle "playchess.com"]
[Source "ChessBase"]
[SourceQuality "1"]
[TimeControl "40/5400+30:1800+30"]

1. c4 {[%emt 0:00:00]} Nf6 {[%emt 0:00:00]} 2. Nc3 {[%emt 0:00:00]} c5 {[%emt 0:00:00]} 3. g3 {[%emt 0:00:15]} e6 {[%emt 0:00:00]} 4. e4 {[%emt 0:00:50]} d6 {[%emt 0:00:29]} 5. Nge2 {[%emt 0:01:12]} b6 {[%emt 0:00:34]} 6. Bg2 {[%emt 0:00:05]} Bb7 {[%emt 0:00:01]} 7. O-O {[%emt 0:01:16]} Nbd7 {[%emt 0:00:51]} 8. d3 {[%emt 0:00:13]} Qb8 {[%emt 0:01:03]} 9. f4 {[%emt 0:03:53]} Be7 {[%emt 0:00:08]} 10. Bd2 {[%emt 0:01:49]} O-O {[%emt 0:00:05]} 11. Qc2 {[%emt 0:00:43]} Re8 {[%emt 0:00:18]} 12. h3 {[%emt 0:01:46]} h5 {[%emt 0:05:58]} 13. Kh1 {[%emt 0:10:02]} a6 {[%emt 0:01:12]} 14. a4 {[%emt 0:01:50]} Qc7 {[%emt 0:00:10]} 15. b3 {[%emt 0:01:17]} Rad8 {[%emt 0:01:12]} 16. Be3 {[%emt 0:03:13]} Bf8 {[%emt 0:02:54]} 17. Qd2 {[%emt 0:00:26]} g6 {[%emt 0:11:35]} 18. Rad1 {[%emt 0:02:03]} Bg7 {[%emt 0:00:23]} 19. Qc1 {[%emt 0:00:48]} Rc8 {[%emt 0:00:47]} 20. Qd2 {[%emt 0:01:18]} Qb8 {[%emt 0:02:00]} 21. Qc1 {[%emt 0:02:03]} Qa8 {[%emt 0:00:05]} 22. Kg1 {[%emt 0:08:58]} Bc6 {[%emt 0:24:09]} 23. Qc2 {[%emt 0:12:40]} Bb7 {[%emt 0:01:29]} 24. Qc1 {[%emt 0:00:22]} Bh8 {[%emt 0:00:08]} 25. Qc2 {[%emt 0:00:28]} Rcd8 {[%emt 0:02:10]} 26. Bf2 {[%emt 0:00:50]} Nb8 {[%emt 0:00:50]} 27. d4 {[%emt 0:01:11]} cxd4 {[%emt 0:00:18]} 28. Bxd4 {[%emt 0:00:26]} Nbd7 {[%emt 0:00:22]} 29. Bf2 {[%emt 0:03:55]} Nc5 {[%emt 0:14:54]} 30. Bxc5 {[%emt 0:11:49]} dxc5 {[%emt 0:00:21]} 31. Rxd8 {[%emt 0:02:44]} Rxd8 {[%emt 0:00:19]} 32. Rf2 {[%emt 0:00:11]} Rd7 {[%emt 0:08:28]} 33. e5 {[%emt 0:02:09]} Bxg2 {[%emt 0:00:09]} 34. Rxg2 {[%emt 0:00:25]} Ne8 {[%emt 0:00:33]} 35. g4 {[%emt 0:00:23]} hxg4 {[%emt 0:01:42]} 36. hxg4 {[%emt 0:00:15]} Qd8 {[%emt 0:02:30]} 37. Ng3 {[%emt 0:01:41]} Rd3 {[%emt 0:04:06]} 38. Nf1 {[%emt 0:02:19]} Qd4+ {[%emt 0:00:57]} 39. Kh1 {[%emt 0:00:02]} 0-1

[Event "Nordic Chess-ch 2019"]
[Site "Sarpsborg"]
[Date "2019.06.24"]
[Round "5.28"]
[White "Henriksen, Morgan"]
[Black "Nordtug, Per Oistein"]
[Result "1-0"]
[ECO "D53"]
[WhiteElo "1717"]
[BlackElo "1456"]
[Annotator "NA"]
[PlyCount "58"]
[EventDate "2019.06.21"]
[EventType "swiss"]
[EventCountry "NOR"]
[SourceTitle "playchess.com"]
[Source "ChessBase"]
[SourceQuality "1"]
[TimeControl "40/5400+30:1800+30"]

1. d4 {[%emt 0:00:00]} Nf6 {[%emt 0:00:00]} 2. c4 {[%emt 0:00:00]} e6 {[%emt 0:00:00]} 3. Nc3 {[%emt 0:00:00]} d5 {[%emt 0:00:05]} 4. Bg5 {[%emt 0:00:49]} Be7 {[%emt 0:00:24]} 5. e3 {[%emt 0:00:06]} c6 {[%emt 0:00:24]} 6. Nf3 {[%emt 0:00:18]} Nbd7 {[%emt 0:00:10]} 7. Bd3 {[%emt 0:00:21]} dxc4 {[%emt 0:00:09]} 8. Bxc4 {[%emt 0:00:06]} b5 {[%emt 0:00:08]} 9. Bd3 {[%emt 0:00:04]} Bb7 {[%emt 0:00:30]} 10. O-O {[%emt 0:00:12]} a6 {[%emt 0:00:09]} 11. Rc1 {[%emt 0:00:28]} Rc8 {[%emt 0:01:27]} 12. Bb1 {[%emt 0:00:12]} c5 {[%emt 0:03:06]} 13. dxc5 {[%emt 0:01:37]} Nxc5 {[%emt 0:01:26]} 14. Qe2 {[%emt 0:05:58]} b4 {[%emt 0:04:34]} 15. Nd1 {[%emt 0:00:13]} O-O {[%emt 0:00:58]} 16. Nd4 {[%emt 0:03:05]} Qd5 {[%emt 0:01:52]} 17. Nf3 {[%emt 0:00:15]} Nce4 {[%emt 0:04:19]} 18. Bxe4 {[%emt 0:09:57]} Qxe4 {[%emt 0:01:00]} 19. Rxc8 {[%emt 0:01:37]} Rxc8 {[%emt 0:00:06]} 20. Ne1 {[%emt 0:02:34]} Rc2 {[%emt 0:01:47]} 21. Qxc2 {[%emt 0:01:35]} Qd5 {[%emt 0:09:36]} 22. Bxf6 {[%emt 0:02:32]} Bxf6 {[%emt 0:00:09]} 23. b3 {[%emt 0:02:00]} a5 {[%emt 0:00:42]} 24. f3 {[%emt 0:00:56]} Ba6 {[%emt 0:00:42]} 25. Rf2 {[%emt 0:01:32]} Qb5 {[%emt 0:02:45]} 26. Nb2 {[%emt 0:07:44]} Qe5 {[%emt 0:01:18]} 27. Qd2 {[%emt 0:05:05]} Qc3 {[%emt 0:01:28]} 28. Qxc3 {[%emt 0:03:25]} Bxc3 {[%emt 0:00:31]} 29. Ned3 {[%emt 0:01:16]} Bxb2 {[%emt 0:03:39]} 1-0

[Event "Nordic Chess-ch 2019"]
[Site "Sarpsborg"]
[Date "2019.06.24"]
[Round "5.29"]
[White "Blauhut, Anna"]
[Black "Eiding, Amanda Mai Irgens"]
[Result "0-1"]
[ECO "B27"]
[WhiteElo "1156"]
[BlackElo "1655"]
[Annotator "NA"]
[PlyCount "192"]
[EventDate "2019.06.21"]
[EventType "swiss"]
[EventCountry "NOR"]
[SourceTitle "playchess.com"]
[Source "ChessBase"]
[SourceQuality "1"]
[TimeControl "40/5400+30:1800+30"]

1. e4 {[%emt 0:00:00]} c5 {[%emt 0:00:00]} 2. Nf3 {[%emt 0:00:00]} g6 {[%emt 0:00:00]} 3. c3 {[%emt 0:00:08]} Bg7 {[%emt 0:00:00]} 4. d4 {[%emt 0:00:21]} cxd4 {[%emt 0:00:03]} 5. cxd4 {[%emt 0:00:15]} d5 {[%emt 0:00:08]} 6. e5 {[%emt 0:00:16]} Bg4 {[%emt 0:00:13]} 7. Bb5+ {[%emt 0:00:49]} Nd7 {[%emt 0:00:12]} 8. Nbd2 {[%emt 0:00:44]} a6 {[%emt 0:00:13]} 9. Bd3 {[%emt 0:00:24]} e6 {[%emt 0:00:32]} 10. O-O {[%emt 0:00:41]} Ne7 {[%emt 0:00:08]} 11. b3 {[%emt 0:04:01]} Qa5 {[%emt 0:04:54]} 12. Bb2 {[%emt 0:03:55]} O-O {[%emt 0:00:17]} 13. h3 {[%emt 0:01:35]} Bf5 {[%emt 0:07:48]} 14. Bxf5 {[%emt 0:01:47]} Nxf5 {[%emt 0:00:08]} 15. Re1 {[%emt 0:01:50]} Qb6 {[%emt 0:02:53]} 16. Nf1 {[%emt 0:01:00]} Rfe8 {[%emt 0:06:27]} 17. Qd3 {[%emt 0:03:14]} Ne7 {[%emt 0:01:18]} 18. Rac1 {[%emt 0:01:26]} Nc6 {[%emt 0:00:18]} 19. a3 {[%emt 0:02:05]} Na5 {[%emt 0:00:42]} 20. Rc3 {[%emt 0:02:13]} f6 {[%emt 0:03:39]} 21. exf6 {[%emt 0:03:59]} Nxf6 {[%emt 0:02:23]} 22. Ng3 {[%emt 0:02:46]} Nd7 {[%emt 0:01:18]} 23. Bc1 {[%emt 0:07:50]} Nc6 {[%emt 0:05:53]} 24. Be3 {[%emt 0:02:23]} a5 {[%emt 0:07:23]} 25. Rc2 {[%emt 0:03:09]} Bf8 {[%emt 0:04:05]} 26. Bc1 {[%emt 0:02:28]} Bg7 {[%emt 0:02:33]} 27. Be3 {[%emt 0:00:23]} Rac8 {[%emt 0:01:36]} 28. Ne2 {[%emt 0:04:38]} Bf8 {[%emt 0:03:04]} 29. Bc1 {[%emt 0:01:02]} Nf6 {[%emt 0:00:41]} 30. Ng3 {[%emt 0:02:50]} Na7 {[%emt 0:10:49]} 31. Rxc8 {[%emt 0:01:12]} Rxc8 {[%emt 0:01:14]} 32. Bb2 {[%emt 0:01:07]} Re8 {[%emt 0:01:26]} 33. Ne5 {[%emt 0:01:17]} Bd6 {[%emt 0:02:15]} 34. f4 {[%emt 0:02:20]} Nc6 {[%emt 0:01:22]} 35. Ne2 {[%emt 0:00:58]} Bxe5 {[%emt 0:02:14]} 36. fxe5 {[%emt 0:00:54]} Nxe5 {[%emt 0:00:16]} 37. Qg3 {[%emt 0:02:45]} Ned7 {[%emt 0:01:56]} 38. Kh1 {[%emt 0:00:36]} Ne4 {[%emt 0:00:33]} 39. Qe3 {[%emt 0:01:26]} Rf8 {[%emt 0:02:34]} 40. Ng3 {[%emt 0:02:18]} Ndf6 {[%emt 0:01:04]} 41. Rf1 {[%emt 0:31:30]} Qd6 {[%emt 0:31:44]} 42. Nxe4 {[%emt 0:01:17]} Nxe4 {[%emt 0:00:19]} 43. Rxf8+ {[%emt 0:00:19]} Qxf8 {[%emt 0:00:21]} 44. Kg1 {[%emt 0:00:59]} Kg7 {[%emt 0:01:01]} 45. Qe1 {[%emt 0:01:11]} b6 {[%emt 0:00:42]} 46. b4 {[%emt 0:00:58]} axb4 {[%emt 0:00:13]} 47. Qxb4 {[%emt 0:00:34]} Qxb4 {[%emt 0:01:00]} 48. axb4 {[%emt 0:00:10]} Kf6 {[%emt 0:00:13]} 49. Kf1 {[%emt 0:00:36]} Ke7 {[%emt 0:02:29]} 50. Ke2 {[%emt 0:00:24]} Kd6 {[%emt 0:00:12]} 51. Kd3 {[%emt 0:00:25]} Kc6 {[%emt 0:00:10]} 52. Kc2 {[%emt 0:00:17]} Kb5 {[%emt 0:00:37]} 53. Kb3 {[%emt 0:00:18]} Nd2+ {[%emt 0:01:57]} 54. Kc3 {[%emt 0:00:45]} Ne4+ {[%emt 0:01:31]} 55. Kb3 {[%emt 0:00:15]} Kc6 {[%emt 0:01:04]} 56. Bc1 {[%emt 0:01:43]} b5 {[%emt 0:00:19]} 57. Bf4 {[%emt 0:00:26]} Kd7 {[%emt 0:01:27]} 58. Be5 {[%emt 0:00:19]} Nd6 {[%emt 0:00:44]} 59. Kc3 {[%emt 0:00:53]} Nf7 {[%emt 0:01:39]} 60. Bf6 {[%emt 0:00:40]} Kd6 {[%emt 0:00:21]} 61. Kd3 {[%emt 0:00:56]} e5 {[%emt 0:00:24]} 62. g4 {[%emt 0:00:44]} Ke6 {[%emt 0:00:40]} 63. Bh4 {[%emt 0:00:24]} e4+ {[%emt 0:01:47]} 64. Ke3 {[%emt 0:00:16]} Nd6 {[%emt 0:00:55]} 65. Kf4 {[%emt 0:00:41]} h6 {[%emt 0:00:41]} 66. Bf2 {[%emt 0:00:32]} Nf7 {[%emt 0:01:09]} 67. h4 {[%emt 0:00:37]} Kf6 {[%emt 0:00:38]} 68. h5 {[%emt 0:00:46]} g5+ {[%emt 0:01:54]} 69. Kg3 {[%emt 0:00:18]} Nd8 {[%emt 0:00:17]} 70. Be1 {[%emt 0:00:24]} Nc6 {[%emt 0:01:07]} 71. Bc3 {[%emt 0:00:16]} Ke6 {[%emt 0:00:09]} 72. Kf2 {[%emt 0:00:41]} Ne7 {[%emt 0:00:33]} 73. Kg3 {[%emt 0:00:44]} Ng8 {[%emt 0:00:13]} 74. Bd2 {[%emt 0:00:23]} Nf6 {[%emt 0:00:33]} 75. Be3 {[%emt 0:00:23]} Ne8 {[%emt 0:00:27]} 76. Kf2 {[%emt 0:00:43]} Kf7 {[%emt 0:00:20]} 77. Kg3 {[%emt 0:00:22]} Nc7 {[%emt 0:00:50]} 78. Bd2 {[%emt 0:00:31]} Ne6 {[%emt 0:00:25]} 79. Be3 {[%emt 0:00:29]} Ke7 {[%emt 0:00:23]} 80. Bf2 {[%emt 0:00:36]} Nf4 {[%emt 0:00:18]} 81. Be3 {[%emt 0:00:37]} Nd3 {[%emt 0:01:31]} 82. Bd2 {[%emt 0:00:21]} Ke6 {[%emt 0:00:44]} 83. Bc3 {[%emt 0:00:36]} Nf4 {[%emt 0:00:33]} 84. Bd2 {[%emt 0:00:57]} Ne2+ {[%emt 0:00:16]} 85. Kf2 {[%emt 0:00:34]} Nxd4 {[%emt 0:03:53]} 86. Bc3 {[%emt 0:00:58]} Nc6 {[%emt 0:00:28]} 87. Ke3 {[%emt 0:00:21]} Kf7 {[%emt 0:00:44]} 88. Bd2 {[%emt 0:01:02]} Ne5 {[%emt 0:00:26]} 89. Kd4 {[%emt 0:00:53]} Ke6 {[%emt 0:01:51]} 90. Kc5 {[%emt 0:00:32]} Nc4 {[%emt 0:00:50]} 91. Bc1 {[%emt 0:00:56]} e3 {[%emt 0:00:23]} 92. Bxe3 {[%emt 0:01:22]} Nxe3 {[%emt 0:00:16]} 93. Kxb5 {[%emt 0:00:08]} Nxg4 {[%emt 0:00:27]} 94. Kc5 {[%emt 0:00:55]} Ne5 {[%emt 0:00:19]} 95. b5 {[%emt 0:01:22]} g4 {[%emt 0:00:22]} 96. b6 {[%emt 0:00:21]} Nd7+ {[%emt 0:00:16]} 0-1

[Event "Nordic Chess-ch 2019"]
[Site "Sarpsborg"]
[Date "2019.06.24"]
[Round "5.30"]
[White "Berisha, Xhafer"]
[Black "Haggar, Haytham"]
[Result "0-1"]
[ECO "D94"]
[WhiteElo "1340"]
[BlackElo "1309"]
[Annotator "NA"]
[PlyCount "32"]
[EventDate "2019.06.21"]
[EventType "swiss"]
[EventCountry "NOR"]
[SourceTitle "playchess.com"]
[Source "ChessBase"]
[SourceQuality "1"]
[TimeControl "40/5400+30:1800+30"]

1. e3 {[%emt 0:00:23]} d5 {[%emt 0:00:26]} 2. c4 {[%emt 0:00:23]} c6 {[%emt 0:00:31]} 3. d4 {[%emt 0:00:37]} Nf6 {[%emt 0:00:52]} 4. Nc3 {[%emt 0:06:40]} g6 {[%emt 0:01:11]} 5. Be2 {[%emt 0:00:31]} Bg7 {[%emt 0:00:21]} 6. Nf3 {[%emt 0:00:18]} O-O {[%emt 0:00:26]} 7. cxd5 {[%emt 0:00:19]} cxd5 {[%emt 0:00:59]} 8. Bd2 {[%emt 0:00:27]} Bf5 {[%emt 0:02:24]} 9. h3 {[%emt 0:00:45]} Nc6 {[%emt 0:01:52]} 10. a3 {[%emt 0:00:29]} Rc8 {[%emt 0:02:57]} 11. Rc1 {[%emt 0:00:27]} Re8 {[%emt 0:04:10]} 12. Nh4 {[%emt 0:00:35]} Be6 {[%emt 0:01:24]} 13. g4 {[%emt 0:00:39]} a6 {[%emt 0:05:24]} 14. Bf3 {[%emt 0:00:24]} Na5 {[%emt 0:03:37]} 15. Be2 Ne4 {[%emt 0:00:30]} 16. Nxe4 dxe4 {[%emt 0:00:30]} 0-1

[Event "Nordic Chess-ch 2019"]
[Site "Sarpsborg"]
[Date "2019.06.24"]
[Round "5.31"]
[White "Ulrichsen, Jarl H"]
[Black "Eriksson, Kristian"]
[Result "1/2-1/2"]
[ECO "C47"]
[WhiteElo "2180"]
[BlackElo "2111"]
[Annotator "NA"]
[PlyCount "64"]
[EventDate "2019.06.21"]
[EventType "swiss"]
[EventCountry "NOR"]
[SourceTitle "playchess.com"]
[Source "ChessBase"]
[SourceQuality "1"]
[TimeControl "40/5400+30:1800+30"]

1. e4 {[%emt 0:00:00]} e5 {[%emt 0:00:14]} 2. Nf3 {[%emt 0:00:51]} Nc6 {[%emt 0:00:10]} 3. Nc3 {[%emt 0:04:13]} Nf6 {[%emt 0:00:44]} 4. d4 {[%emt 0:09:01]} Bb4 {[%emt 0:01:35]} 5. Bg5 {[%emt 0:24:46]} h6 {[%emt 0:04:52]} 6. Bxf6 {[%emt 0:07:29]} Qxf6 {[%emt 0:01:14]} 7. dxe5 {[%emt 0:01:41]} Nxe5 {[%emt 0:03:52]} 8. Nxe5 {[%emt 0:02:45]} Qxe5 {[%emt 0:01:22]} 9. Qd3 {[%emt 0:11:30]} Bxc3+ {[%emt 0:15:07]} 10. bxc3 {[%emt 0:06:33]} O-O {[%emt 0:05:05]} 11. Be2 {[%emt 0:03:40]} Re8 {[%emt 0:07:02]} 12. f3 {[%emt 0:03:42]} d5 {[%emt 0:06:48]} 13. Qxd5 {[%emt 0:01:39]} Qxc3+ {[%emt 0:00:10]} 14. Kf2 {[%emt 0:00:05]} Be6 {[%emt 0:02:15]} 15. Qd3 {[%emt 0:01:28]} Qe5 {[%emt 0:04:26]} 16. Qe3 {[%emt 0:02:43]} f5 {[%emt 0:05:50]} 17. f4 {[%emt 0:05:37]} Qxe4 {[%emt 0:01:22]} 18. Qxe4 {[%emt 0:00:07]} fxe4 {[%emt 0:00:06]} 19. Ke3 {[%emt 0:00:08]} Rad8 {[%emt 0:03:56]} 20. Rhb1 {[%emt 0:02:12]} b6 {[%emt 0:05:19]} 21. a4 {[%emt 0:01:02]} a5 {[%emt 0:05:50]} 22. c4 {[%emt 0:00:51]} Bd7 {[%emt 0:05:43]} 23. c5 {[%emt 0:02:46]} bxc5 {[%emt 0:06:23]} 24. Rc1 {[%emt 0:00:09]} Rb8 {[%emt 0:01:52]} 25. Ra3 {[%emt 0:00:17]} Rb4 {[%emt 0:01:20]} 26. Rxc5 {[%emt 0:00:11]} Rxa4 {[%emt 0:00:59]} 27. Rxa4 {[%emt 0:00:36]} Bxa4 {[%emt 0:00:02]} 28. Rxa5 {[%emt 0:00:59]} Bb3 {[%emt 0:01:52]} 29. Rc5 {[%emt 0:01:51]} Re7 {[%emt 0:00:16]} 30. Bc4+ {[%emt 0:00:48]} Bxc4 {[%emt 0:00:17]} 31. Rxc4 {[%emt 0:00:02]} Kf7 {[%emt 0:01:17]} 32. g4 {[%emt 0:01:19]} Kf6 {[%emt 0:01:47]} 1/2-1/2

[Event "Nordic Chess-ch 2019"]
[Site "Sarpsborg"]
[Date "2019.06.24"]
[Round "5.32"]
[White "Store, Trond"]
[Black "Holst, Conny"]
[Result "1-0"]
[ECO "D36"]
[WhiteElo "2100"]
[BlackElo "2197"]
[Annotator "NA"]
[PlyCount "79"]
[EventDate "2019.06.21"]
[EventType "swiss"]
[EventCountry "NOR"]
[SourceTitle "playchess.com"]
[Source "ChessBase"]
[SourceQuality "1"]
[TimeControl "40/5400+30:1800+30"]

1. Nf3 {[%emt 0:00:00]} Nf6 {[%emt 0:00:00]} 2. c4 {[%emt 0:00:00]} e6 {[%emt 0:00:48]} 3. Nc3 {[%emt 0:00:00]} d5 {[%emt 0:04:10]} 4. d4 {[%emt 0:00:25]} Be7 {[%emt 0:01:18]} 5. Bg5 {[%emt 0:02:49]} O-O {[%emt 0:00:32]} 6. e3 {[%emt 0:00:26]} c6 {[%emt 0:10:40]} 7. Qc2 {[%emt 0:07:32]} Nbd7 {[%emt 0:04:12]} 8. cxd5 {[%emt 0:03:37]} exd5 {[%emt 0:01:37]} 9. Bd3 {[%emt 0:00:44]} Re8 {[%emt 0:03:53]} 10. O-O {[%emt 0:00:39]} h6 {[%emt 0:05:16]} 11. Bf4 {[%emt 0:01:58]} Nf8 {[%emt 0:01:12]} 12. h3 {[%emt 0:05:54]} Bd6 {[%emt 0:06:44]} 13. Be5 {[%emt 0:01:38]} Bxe5 {[%emt 0:02:18]} 14. Nxe5 {[%emt 0:00:13]} c5 {[%emt 0:09:12]} 15. Bb5 {[%emt 0:07:54]} Re6 {[%emt 0:01:57]} 16. a4 {[%emt 0:07:19]} c4 {[%emt 0:06:10]} 17. a5 {[%emt 0:02:01]} a6 {[%emt 0:00:35]} 18. Ba4 {[%emt 0:00:11]} b5 {[%emt 0:00:12]} 19. axb6 {[%emt 0:00:23]} Qxb6 {[%emt 0:00:53]} 20. b3 {[%emt 0:01:56]} Bb7 {[%emt 0:04:54]} 21. bxc4 {[%emt 0:03:40]} dxc4 {[%emt 0:01:46]} 22. Nxc4 {[%emt 0:01:02]} Qc7 {[%emt 0:00:28]} 23. Ne5 {[%emt 0:00:27]} Rc8 {[%emt 0:07:28]} 24. Rfc1 {[%emt 0:06:23]} Qd8 {[%emt 0:07:14]} 25. Qa2 {[%emt 0:03:50]} Re7 {[%emt 0:07:32]} 26. Bb3 {[%emt 0:41:59]} Ne6 {[%emt 0:00:15]} 27. Bc4 {[%emt 0:00:00]} Ng5 {[%emt 0:06:32]} 28. f4 {[%emt 0:00:00]} Rxe5 {[%emt 0:05:13]} 29. dxe5 {[%emt 0:00:00]} Nfe4 {[%emt 0:00:54]} 30. fxg5 {[%emt 0:00:00]} Nxg5 {[%emt 0:00:34]} 31. Bf1 {[%emt 0:00:00]} Nxh3+ {[%emt 0:00:24]} 32. gxh3 {[%emt 0:00:00]} Qg5+ {[%emt 0:00:09]} 33. Bg2 {[%emt 0:00:00]} Rc6 {[%emt 0:00:41]} 34. e4 {[%emt 0:02:10]} Qxe5 {[%emt 0:00:30]} 35. Nd5 {[%emt 0:01:06]} Rg6 {[%emt 0:00:22]} 36. Re1 {[%emt 0:00:23]} Bc8 {[%emt 0:00:31]} 37. Qa3 {[%emt 0:00:22]} Rg3 {[%emt 0:00:32]} 38. Qc5 {[%emt 0:01:14]} Rxg2+ {[%emt 0:00:45]} 39. Kxg2 {[%emt 0:00:12]} Qg5+ {[%emt 0:00:20]} 40. Kh1 {[%emt 0:00:42]} 1-0